Workbook

Sheet Qualification Worksheet
B2: MORTGAGE
B3: QUALIFICATION
B4: WORKSHEET
B7: INCOME | C7: ANNUAL | D7: MONTHLY | F7: The first qualifying number (LEFT) calculates your maximum monthly payment, assuming you have no long-term debt. It is computed by multiplying your total income by your Housing Cost Ratio and dividing the result by 12.
B8: Salary or wages | C8: $65,000.00 | D8: =IFERROR(C8/12,0) -> $5,416.67
B9: Other salary or wages | D9: $0.00
B10: Rental income | D10: $0.00
B11: Investment income | C11: $250.00 | D11: $20.83
B12: Additional income | D12: $0.00
B13: Total | C13: =SUM(Income[ANNUAL]) -> $65,250.00 | D13: =SUM(Income[MONTHLY]) -> $5,437.50
B15: First qualifying number | C15: =HousingCostRatio*SUM(Income[ANNUAL]) -> $18,270.00 | D15: =C15/12 -> $1,522.50 | F15: Housing Cost Ratio | G15: 0.28
B18: LONG-TERM DEBTS | C18: ANNUAL | D18: MONTHLY | F18: The second qualifying number takes into account your monthly debt payments, applying your Total Debt Service Ratio. Mortgage companies usually qualify you for monthly payments that are no higher than the lesser of the two results.
B19: Car loan payments | C19: =IF(D19,D19*12,0) -> $3,000.00 | D19: $250.00
B20: Credit card payments | C20: =IF(D20,D20*12,0) -> $2,400.00 | D20: $200.00
B21: Other loan payment | C21: =IF(D21,D21*12,0) -> $0.00
B22: Other loan payment | C22: =IF(D22,D22*12,0) -> $0.00
B23: Total | C23: =SUM(Debts[ANNUAL]) -> $5,400.00 | D23: =SUM(Debts[MONTHLY]) -> $450.00
B25: Second Qualifying Number | C25: =DebtServiceRatio*SUM(Income[ANNUAL]) -> $23,490.00 | D25: =MIN(C25/12-SUM(Debts[MONTHLY]),C25/12) -> $1,507.50 | F25: Total debt service ratio | G25: 0.36
C28: You may qualify for monthly payments of | D28: =MIN(D15,D25) -> $1,507.50
C29: Estimated monthly escrow payment | D29: 100
C30: Homeowner's insurance, if applicable | D30: 75
C31: Homeowner's dues and other fees, if any | D31: 125
C32: Annual interest rate (e.g., 7.125) | D32: 8.25
C33: Duration of loan (in years) | D33: 30
C34: Monthly principal + interest payment | D34: =IF(SecondQN,SecondQN-SUM(D29:D31),"") -> $1,207.50
C36: Maximum loan amount | D36: =IF((MonthlyPaymentMax*AnnualInterestRate*Duration),PV(AnnualInterestRate/100/12,Duration*12,-MPIP),"") -> $160,728.56
B39: Important: This worksheet provides a rough estimate for conventional, fixed-term mortgages. Loan terms vary depending on type of mortgage and lender policies. Consult a professional lender for exact data.
